[Event "*** Titled Tuesday Blitz"]
[Site "Chess.com"]
[Date "2019.10.01"]
[Round "10"]
[White "Aggressus"]
[Black "WPWPWP-2015"]
[Result "0-1"]
[WhiteElo "2352"]
[BlackElo "2480"]
[TimeControl "180+2"]
[EndTime "15:29:48 PDT"]
[Termination "WPWPWP-2015 won by checkmate"]

1. e4 {[%clk 0:03:01.9]} 1... c5 {[%clk 0:02:56.7]} 2. Nf3 {[%clk 0:03:02.3]}
2... d6 {[%clk 0:02:56.3]} 3. d4 {[%clk 0:03:03.1]} 3... cxd4 {[%clk 0:02:57.4]}
4. Qxd4 {[%clk 0:03:03.5]} 4... Nc6 {[%clk 0:02:57.7]} 5. Bb5 {[%clk 0:03:02]}
5... Bd7 {[%clk 0:02:59]} 6. Bxc6 {[%clk 0:03:01.8]} 6... Bxc6 {[%clk
0:03:00.3]} 7. Nc3 {[%clk 0:03:02.8]} 7... e5 {[%clk 0:02:59.5]} 8. Qd3 {[%clk
0:02:55.2]} 8... Nf6 {[%clk 0:02:52.3]} 9. Bg5 {[%clk 0:02:40.1]} 9... Be7
{[%clk 0:02:52.5]} 10. Bxf6 {[%clk 0:02:29.2]} 10... Bxf6 {[%clk 0:02:51.3]} 11.
Rd1 {[%clk 0:02:29.8]} 11... Be7 {[%clk 0:02:44.6]} 12. O-O {[%clk 0:02:29.2]}
12... O-O {[%clk 0:02:41.1]} 13. Nd5 {[%clk 0:02:30]} 13... Re8 {[%clk 0:02:37]}
14. Nxe7+ {[%clk 0:02:21.1]} 14... Qxe7 {[%clk 0:02:36.2]} 15. c4 {[%clk
0:02:14.5]} 15... f5 {[%clk 0:02:22.9]} 16. Nd2 {[%clk 0:01:37.9]} 16... f4
{[%clk 0:02:04.2]} 17. Nb1 {[%clk 0:01:35.1]} 17... Rad8 {[%clk 0:01:54.7]} 18.
Nc3 {[%clk 0:01:28.5]} 18... Qg5 {[%clk 0:01:49.2]} 19. f3 {[%clk 0:01:29.2]}
19... Re6 {[%clk 0:01:48.7]} 20. Rf2 {[%clk 0:01:28.6]} 20... Rh6 {[%clk
0:01:45.9]} 21. b4 {[%clk 0:00:45.3]} 21... Qh4 {[%clk 0:01:43.1]} 22. h3 {[%clk
0:00:45.4]} 22... Qg3 {[%clk 0:01:34.4]} 23. Kf1 {[%clk 0:00:46.4]} 23... a6
{[%clk 0:01:23]} 24. a4 {[%clk 0:00:46.4]} 24... Be8 {[%clk 0:01:13.9]} 25. Rc2
{[%clk 0:00:19.3]} 25... Bf7 {[%clk 0:01:12.3]} 26. Ne2 {[%clk 0:00:19.9]} 26...
Qg5 {[%clk 0:01:08]} 27. c5 {[%clk 0:00:19.8]} 27... d5 {[%clk 0:01:06]} 28. Ng1
{[%clk 0:00:18.7]} 28... Rg6 {[%clk 0:00:57.3]} 29. b5 {[%clk 0:00:18.5]} 29...
axb5 {[%clk 0:00:48.1]} 30. axb5 {[%clk 0:00:20.4]} 30... d4 {[%clk 0:00:25.6]}
31. c6 {[%clk 0:00:20]} 31... bxc6 {[%clk 0:00:26.1]} 32. bxc6 {[%clk
0:00:18.2]} 32... Rc8 {[%clk 0:00:25.2]} 33. Qb5 {[%clk 0:00:16.1]} 33... Qe7
{[%clk 0:00:24.9]} 34. Ne2 {[%clk 0:00:14.9]} 34... Be8 {[%clk 0:00:25.2]} 35.
Qd5+ {[%clk 0:00:14]} 35... Qe6 {[%clk 0:00:22]} 36. c7 {[%clk 0:00:14.6]} 36...
Qxd5 {[%clk 0:00:17.7]} 37. exd5 {[%clk 0:00:15.4]} 37... Ba4 {[%clk 0:00:16.9]}
38. Rb1 {[%clk 0:00:07.4]} 38... Rf6 {[%clk 0:00:11.5]} 39. Rb8 {[%clk
0:00:07.5]} 39... Rff8 {[%clk 0:00:12.2]} 40. Rc5 {[%clk 0:00:08.3]} 40... Bd7
{[%clk 0:00:11.2]} 41. d6 {[%clk 0:00:08.7]} 41... Rxb8 {[%clk 0:00:11]} 42.
cxb8=Q {[%clk 0:00:09.4]} 42... Rxb8 {[%clk 0:00:11.6]} 43. Rxe5 {[%clk
0:00:10.6]} 43... d3 {[%clk 0:00:12.9]} 44. Nc3 {[%clk 0:00:10]} 44... Rc8
{[%clk 0:00:13.2]} 45. Re7 {[%clk 0:00:09.7]} 45... Rxc3 {[%clk 0:00:12.8]} 46.
Rxd7 {[%clk 0:00:10.7]} 46... Rc1+ {[%clk 0:00:13.9]} 47. Kf2 {[%clk 0:00:11.4]}
47... d2 {[%clk 0:00:15.2]} 48. Rc7 {[%clk 0:00:09.6]} 48... Rf1+ {[%clk
0:00:14]} 49. Kxf1 {[%clk 0:00:09.8]} 49... d1=Q+ {[%clk 0:00:14]} 50. Kf2
{[%clk 0:00:10.8]} 50... Qxd6 {[%clk 0:00:14.6]} 51. Rc8+ {[%clk 0:00:11.8]}
51... Kf7 {[%clk 0:00:15.3]} 52. Kg1 {[%clk 0:00:12.9]} 52... Qd1+ {[%clk
0:00:14.2]} 53. Kh2 {[%clk 0:00:13.8]} 53... Qe1 {[%clk 0:00:15.1]} 54. Rc4
{[%clk 0:00:13.9]} 54... g5 {[%clk 0:00:14.2]} 55. Re4 {[%clk 0:00:14]} 55...
Qf2 {[%clk 0:00:14.1]} 56. Kh1 {[%clk 0:00:15.1]} 56... h6 {[%clk 0:00:14.5]}
57. Kh2 {[%clk 0:00:16]} 57... Kg6 {[%clk 0:00:15.2]} 58. Kh1 {[%clk 0:00:16.9]}
58... Kf5 {[%clk 0:00:15.9]} 59. Kh2 {[%clk 0:00:17.3]} 59... Qg3+ {[%clk
0:00:16.6]} 60. Kh1 {[%clk 0:00:18]} 60... h5 {[%clk 0:00:16.7]} 61. Ra4 {[%clk
0:00:16.1]} 61... Qe1+ {[%clk 0:00:16]} 62. Kh2 {[%clk 0:00:16.5]} 62... Qe5
{[%clk 0:00:15.4]} 63. Rc4 {[%clk 0:00:13.7]} 63... Qd5 {[%clk 0:00:16]} 64. Ra4
{[%clk 0:00:13.5]} 64... Ke5 {[%clk 0:00:17]} 65. Ra7 {[%clk 0:00:12.7]} 65...
Kd4 {[%clk 0:00:16.3]} 66. Ra4+ {[%clk 0:00:12.5]} 66... Ke3 {[%clk 0:00:16.8]}
67. Ra3+ {[%clk 0:00:12.6]} 67... Kf2 {[%clk 0:00:17.3]} 68. Rc3 {[%clk
0:00:12.4]} 68... Qd2 {[%clk 0:00:16.4]} 69. Rc4 {[%clk 0:00:09.8]} 69... Qd1
{[%clk 0:00:15]} 70. Re4 {[%clk 0:00:09.9]} 70... Qg1# {[%clk 0:00:15.1]} 0-1

[Event "*** Titled Tuesday Blitz"]
[Site "Chess.com"]
[Date "2019.10.01"]
[Round "10"]
[White "mortngabriel"]
[Black "Roman_Ovetchkin"]
[Result "0-1"]
[WhiteElo "2362"]
[BlackElo "2635"]
[TimeControl "180+2"]
[EndTime "15:29:50 PDT"]
[Termination "Roman_Ovetchkin won by resignation"]

1. d4 {[%clk 0:03:01.9]} 1... Nf6 {[%clk 0:02:59.8]} 2. Nf3 {[%clk 0:03:02.3]}
2... g6 {[%clk 0:02:59.7]} 3. Nc3 {[%clk 0:03:00.8]} 3... Bg7 {[%clk 0:02:57.4]}
4. e4 {[%clk 0:03:01.6]} 4... d5 {[%clk 0:02:58.4]} 5. exd5 {[%clk 0:02:35.9]}
5... Nxd5 {[%clk 0:02:58.9]} 6. Nxd5 {[%clk 0:02:37.8]} 6... Qxd5 {[%clk
0:02:59]} 7. c4 {[%clk 0:02:39]} 7... Qd6 {[%clk 0:02:53]} 8. Be2 {[%clk
0:02:36.2]} 8... O-O {[%clk 0:02:52.8]} 9. O-O {[%clk 0:02:36.9]} 9... b6 {[%clk
0:02:47]} 10. Be3 {[%clk 0:02:28]} 10... Bb7 {[%clk 0:02:47.9]} 11. Qd2 {[%clk
0:02:25.5]} 11... Rd8 {[%clk 0:02:35.2]} 12. Rad1 {[%clk 0:02:25.1]} 12... c6
{[%clk 0:02:20.1]} 13. Bf4 {[%clk 0:02:10.6]} 13... Qd7 {[%clk 0:02:19]} 14. Ne5
{[%clk 0:02:10]} 14... Qe8 {[%clk 0:02:20]} 15. Bf3 {[%clk 0:02:07.1]} 15... Rc8
{[%clk 0:01:53.7]} 16. Rfe1 {[%clk 0:01:53.5]} 16... Nd7 {[%clk 0:01:54.6]} 17.
c5 {[%clk 0:01:31.2]} 17... bxc5 {[%clk 0:01:11.3]} 18. Nxd7 {[%clk 0:01:28.9]}
18... Qxd7 {[%clk 0:01:10.4]} 19. dxc5 {[%clk 0:01:30]} 19... Qxd2 {[%clk
0:00:50.5]} 20. Rxd2 {[%clk 0:01:31.9]} 20... e6 {[%clk 0:00:51.6]} 21. Rd7
{[%clk 0:01:25]} 21... Ba6 {[%clk 0:00:51.4]} 22. b3 {[%clk 0:01:16.9]} 22...
Bf8 {[%clk 0:00:24.8]} 23. Be3 {[%clk 0:00:47.5]} 23... Bg7 {[%clk 0:00:20.4]}
24. Red1 {[%clk 0:00:43.9]} 24... Bf8 {[%clk 0:00:21.1]} 25. h4 {[%clk
0:00:40.7]} 25... h5 {[%clk 0:00:21.5]} 26. g3 {[%clk 0:00:42.2]} 26... Kg7
{[%clk 0:00:19.5]} 27. Kg2 {[%clk 0:00:38.5]} 27... Kg8 {[%clk 0:00:20.6]} 28.
R1d4 {[%clk 0:00:32.7]} 28... Bb5 {[%clk 0:00:19]} 29. Rf4 {[%clk 0:00:33]}
29... f5 {[%clk 0:00:16.4]} 30. a4 {[%clk 0:00:21.1]} 30... Ba6 {[%clk 0:00:14]}
31. Rb4 {[%clk 0:00:21.4]} 31... e5 {[%clk 0:00:13.5]} 32. Bd1 {[%clk
0:00:16.6]} 32... Rd8 {[%clk 0:00:07.7]} 33. Rxd8 {[%clk 0:00:14.7]} 33... Rxd8
{[%clk 0:00:09.6]} 34. Bc2 {[%clk 0:00:11.9]} 34... Kf7 {[%clk 0:00:10.8]} 35.
f4 {[%clk 0:00:10.8]} 35... e4 {[%clk 0:00:10.9]} 36. Kf2 {[%clk 0:00:11.5]}
36... Ke6 {[%clk 0:00:11.1]} 37. Ke1 {[%clk 0:00:11.5]} 37... Be7 {[%clk
0:00:12.4]} 38. Kf2 {[%clk 0:00:11]} 38... Bf6 {[%clk 0:00:13.7]} 39. a5 {[%clk
0:00:08.6]} 39... Bc3 {[%clk 0:00:14.4]} 40. Ra4 {[%clk 0:00:09.1]} 40... Rb8
{[%clk 0:00:14.9]} 41. Ra2 {[%clk 0:00:08.9]} 41... Rb5 {[%clk 0:00:14.9]} 42.
Bd1 {[%clk 0:00:08.9]} 42... Rxa5 {[%clk 0:00:15.9]} 43. Rc2 {[%clk 0:00:08.8]}
43... Bb4 {[%clk 0:00:15.8]} 44. Be2 {[%clk 0:00:07.5]} 44... Bxe2 {[%clk
0:00:13.9]} 45. Kxe2 {[%clk 0:00:09.4]} 45... Kd5 {[%clk 0:00:15]} 46. Rc4
{[%clk 0:00:07.6]} 46... Bxc5 {[%clk 0:00:14.1]} 47. Bxc5 {[%clk 0:00:05]} 47...
Rxc5 {[%clk 0:00:14.4]} 48. Ra4 {[%clk 0:00:06.9]} 48... Rc3 {[%clk 0:00:10.6]}
49. Kf2 {[%clk 0:00:08]} 49... Rf3+ {[%clk 0:00:11.4]} 50. Kg2 {[%clk
0:00:08.8]} 50... Rxb3 {[%clk 0:00:12.5]} 51. Rxa7 {[%clk 0:00:10.4]} 51... Rb6
{[%clk 0:00:12.5]} 52. Rd7+ {[%clk 0:00:09.9]} 52... Kc4 {[%clk 0:00:12.9]} 53.
Rd6 {[%clk 0:00:10.7]} 53... Rb2+ {[%clk 0:00:12.7]} 54. Kh3 {[%clk 0:00:11.6]}
54... c5 {[%clk 0:00:12.6]} 55. Rxg6 {[%clk 0:00:12.7]} 55... e3 {[%clk
0:00:13.2]} 56. Re6 {[%clk 0:00:09.3]} 56... Kd4 {[%clk 0:00:13.1]} 57. Rd6+
{[%clk 0:00:08.8]} 57... Ke4 {[%clk 0:00:13.8]} 58. Rc6 {[%clk 0:00:06.4]} 58...
Kf3 {[%clk 0:00:13.3]} 59. Rxc5 {[%clk 0:00:06.1]} 59... e2 {[%clk 0:00:14.8]}
60. Re5 {[%clk 0:00:06.7]} 60... Kf2 {[%clk 0:00:14.5]} 61. g4 {[%clk
0:00:06.1]} 61... fxg4+ {[%clk 0:00:15]} 62. Kh2 {[%clk 0:00:07.1]} 62... e1=Q
{[%clk 0:00:16.1]} 0-1

[Event "*** Titled Tuesday Blitz"]
[Site "Chess.com"]
[Date "2019.10.01"]
[Round "10"]
[White "Bigfish1995"]
[Black "Parhamov"]
[Result "0-1"]
[WhiteElo "2991"]
[BlackElo "3050"]
[TimeControl "180+2"]
[EndTime "15:29:55 PDT"]
[Termination "Parhamov won by resignation"]

1. d4 {[%clk 0:03:00.7]} 1... Nf6 {[%clk 0:02:56.8]} 2. c4 {[%clk 0:02:58.9]}
2... e6 {[%clk 0:02:51.5]} 3. Nc3 {[%clk 0:02:58.9]} 3... Bb4 {[%clk 0:02:50.1]}
4. f3 {[%clk 0:03:00.1]} 4... d5 {[%clk 0:02:46.6]} 5. a3 {[%clk 0:02:59]} 5...
Be7 {[%clk 0:02:47.3]} 6. e4 {[%clk 0:02:59.8]} 6... dxe4 {[%clk 0:02:48.6]} 7.
fxe4 {[%clk 0:03:01.5]} 7... c5 {[%clk 0:02:50.2]} 8. d5 {[%clk 0:03:01.6]} 8...
exd5 {[%clk 0:02:51.6]} 9. exd5 {[%clk 0:03:03]} 9... O-O {[%clk 0:02:50.1]} 10.
Be2 {[%clk 0:03:04.2]} 10... Bd6 {[%clk 0:02:49.4]} 11. Nb5 {[%clk 0:03:05.1]}
11... Re8 {[%clk 0:02:40.9]} 12. Nxd6 {[%clk 0:02:56.1]} 12... Qxd6 {[%clk
0:02:28.8]} 13. Nf3 {[%clk 0:02:57.7]} 13... Bg4 {[%clk 0:02:28.5]} 14. O-O
{[%clk 0:02:58.6]} 14... Nbd7 {[%clk 0:02:29]} 15. b3 {[%clk 0:02:40.7]} 15...
h6 {[%clk 0:02:22.6]} 16. Ra2 {[%clk 0:02:37.6]} 16... Re4 {[%clk 0:01:51.8]}
17. Bd3 {[%clk 0:02:18.4]} 17... Re7 {[%clk 0:01:39.2]} 18. Re2 {[%clk
0:01:56.2]} 18... Rae8 {[%clk 0:01:32.3]} 19. Rxe7 {[%clk 0:01:54.5]} 19... Rxe7
{[%clk 0:01:32.9]} 20. Bb2 {[%clk 0:01:54.7]} 20... Ne5 {[%clk 0:01:17.4]} 21.
Be2 {[%clk 0:01:49.8]} 21... Bxf3 {[%clk 0:01:08.6]} 22. Bxf3 {[%clk 0:01:50.6]}
22... Nxf3+ {[%clk 0:01:09.4]} 23. Qxf3 {[%clk 0:01:50.5]} 23... Ne4 {[%clk
0:01:10.6]} 24. Qg4 {[%clk 0:01:26.9]} 24... f6 {[%clk 0:01:02.1]} 25. h4 {[%clk
0:00:58]} 25... h5 {[%clk 0:00:49.4]} 26. Qd1 {[%clk 0:00:18]} 26... Qg3 {[%clk
0:00:48.1]} 27. Rf3 {[%clk 0:00:18.6]} 27... Qxh4 {[%clk 0:00:38.6]} 28. Qe2
{[%clk 0:00:17.8]} 28... Re8 {[%clk 0:00:29.4]} 29. d6 {[%clk 0:00:12.9]} 29...
Nxd6 {[%clk 0:00:29.2]} 30. Qd3 {[%clk 0:00:13.7]} 30... Re1+ {[%clk 0:00:30.2]}
31. Rf1 {[%clk 0:00:15]} 31... Ne4 {[%clk 0:00:31.2]} 32. Qd5+ {[%clk
0:00:11.8]} 32... Kh8 {[%clk 0:00:28]} 33. Rxe1 {[%clk 0:00:12.9]} 33... Qxe1+
{[%clk 0:00:29.9]} 34. Kh2 {[%clk 0:00:14.5]} 34... Qh4+ {[%clk 0:00:31]} 35.
Kg1 {[%clk 0:00:15.7]} 35... b6 {[%clk 0:00:26.9]} 36. Bc1 {[%clk 0:00:14.7]}
36... Qe1+ {[%clk 0:00:25.4]} 37. Kh2 {[%clk 0:00:15.2]} 37... Qg3+ {[%clk
0:00:18.5]} 38. Kg1 {[%clk 0:00:15.6]} 38... Qg4 {[%clk 0:00:16]} 39. Be3 {[%clk
0:00:15.2]} 39... h4 {[%clk 0:00:16.5]} 40. Kh2 {[%clk 0:00:09.9]} 40... Qg3+
{[%clk 0:00:17.4]} 41. Kh1 {[%clk 0:00:11.3]} 41... Qxe3 {[%clk 0:00:18.3]} 42.
Qh5+ {[%clk 0:00:11.3]} 42... Qh6 {[%clk 0:00:19.5]} 43. Qe8+ {[%clk 0:00:12.5]}
43... Kh7 {[%clk 0:00:20.4]} 44. Qxe4+ {[%clk 0:00:14.2]} 44... g6 {[%clk
0:00:20]} 45. Qe7+ {[%clk 0:00:14.7]} 45... Qg7 {[%clk 0:00:21.3]} 46. Qe6
{[%clk 0:00:13]} 46... f5 {[%clk 0:00:19]} 47. b4 {[%clk 0:00:13.3]} 47... Qc7
{[%clk 0:00:16]} 48. Qf6 {[%clk 0:00:11.6]} 48... Qf4 {[%clk 0:00:15]} 49. Qe7+
{[%clk 0:00:12.4]} 49... Kh6 {[%clk 0:00:16.2]} 50. Qxa7 {[%clk 0:00:08.2]}
50... Qxc4 {[%clk 0:00:13.5]} 51. Qxb6 {[%clk 0:00:09.4]} 51... Qf1+ {[%clk
0:00:14.7]} 52. Kh2 {[%clk 0:00:10.4]} 52... Qf4+ {[%clk 0:00:16.2]} 53. Kh1
{[%clk 0:00:11.7]} 53... c4 {[%clk 0:00:17.6]} 54. Qc5 {[%clk 0:00:10.2]} 54...
Qc1+ {[%clk 0:00:12.1]} 55. Kh2 {[%clk 0:00:11.3]} 55... c3 {[%clk 0:00:13.3]}
56. Qd4 {[%clk 0:00:10.1]} 56... Qe1 {[%clk 0:00:12.6]} 57. Qh8+ {[%clk
0:00:09.9]} 57... Kg5 {[%clk 0:00:13.8]} 58. Qd8+ {[%clk 0:00:11.6]} 58... Kh5
{[%clk 0:00:14.9]} 59. Qh8+ {[%clk 0:00:12.1]} 59... Kg4 {[%clk 0:00:15.7]} 60.
Qd4+ {[%clk 0:00:13.6]} 60... f4 {[%clk 0:00:12.9]} 61. Qd7+ {[%clk 0:00:14.6]}
61... Kh5 {[%clk 0:00:12.8]} 62. Qd5+ {[%clk 0:00:11.7]} 62... Kh6 {[%clk
0:00:14.1]} 63. Qd4 {[%clk 0:00:11]} 63... Qe3 {[%clk 0:00:14.4]} 64. Qh8+
{[%clk 0:00:11.4]} 64... Kg5 {[%clk 0:00:15.7]} 65. Qd8+ {[%clk 0:00:13.1]}
65... Kf5 {[%clk 0:00:17.2]} 66. Qd5+ {[%clk 0:00:12.6]} 66... Qe5 {[%clk
0:00:17.3]} 67. Qd3+ {[%clk 0:00:12.9]} 67... Kg5 {[%clk 0:00:17.7]} 68. Qd8+
{[%clk 0:00:13.2]} 68... Kh5 {[%clk 0:00:18.6]} 69. Qd1+ {[%clk 0:00:12.8]}
69... Kh6 {[%clk 0:00:18.8]} 70. Qd8 {[%clk 0:00:08.6]} 70... f3+ {[%clk
0:00:18.7]} 71. Kh1 {[%clk 0:00:07.9]} 71... Qe1+ {[%clk 0:00:19.8]} 0-1

[Event "*** Titled Tuesday Blitz"]
[Site "Chess.com"]
[Date "2019.10.01"]
[Round "10"]
[White "IMRosen"]
[Black "DonRodrigue"]
[Result "1/2-1/2"]
[WhiteElo "2648"]
[BlackElo "2718"]
[TimeControl "180+2"]
[EndTime "15:30:57 PDT"]
[Termination "Game drawn - insufficient material"]

1. d4 {[%clk 0:03:01.9]} 1... Nf6 {[%clk 0:03:00.8]} 2. Bf4 {[%clk 0:03:02.5]}
2... e6 {[%clk 0:03:01.5]} 3. e3 {[%clk 0:03:03.7]} 3... b6 {[%clk 0:02:58.9]}
4. Nf3 {[%clk 0:03:04.6]} 4... Bb7 {[%clk 0:02:59.9]} 5. c4 {[%clk 0:03:06.3]}
5... Bb4+ {[%clk 0:02:57.8]} 6. Nfd2 {[%clk 0:03:07.7]} 6... O-O {[%clk
0:02:55.5]} 7. a3 {[%clk 0:03:08.4]} 7... Be7 {[%clk 0:02:53.5]} 8. Nc3 {[%clk
0:03:09.6]} 8... d5 {[%clk 0:02:52.8]} 9. Qc2 {[%clk 0:03:06.9]} 9... c5 {[%clk
0:02:51.5]} 10. dxc5 {[%clk 0:03:03.9]} 10... Bxc5 {[%clk 0:02:52.7]} 11. b4
{[%clk 0:03:02]} 11... Bd6 {[%clk 0:02:53.8]} 12. Bxd6 {[%clk 0:02:51.4]} 12...
Qxd6 {[%clk 0:02:54.8]} 13. Be2 {[%clk 0:02:51.8]} 13... d4 {[%clk 0:02:48.8]}
14. exd4 {[%clk 0:02:47.4]} 14... Bxg2 {[%clk 0:02:47.8]} 15. Rg1 {[%clk
0:02:48.5]} 15... Qxh2 {[%clk 0:02:47.7]} 16. O-O-O {[%clk 0:02:40.4]} 16... Bb7
{[%clk 0:02:40.7]} 17. Nde4 {[%clk 0:02:31.5]} 17... Nxe4 {[%clk 0:02:37.2]} 18.
Nxe4 {[%clk 0:02:32.3]} 18... Qf4+ {[%clk 0:02:38.2]} 19. Qd2 {[%clk 0:02:01.6]}
19... Qxd2+ {[%clk 0:02:38.1]} 20. Nxd2 {[%clk 0:02:03.5]} 20... a5 {[%clk
0:02:38.4]} 21. b5 {[%clk 0:02:03.3]} 21... Nd7 {[%clk 0:02:36.2]} 22. Rg3
{[%clk 0:02:01]} 22... Rac8 {[%clk 0:02:34.6]} 23. Kb2 {[%clk 0:01:55.8]} 23...
Rfd8 {[%clk 0:02:33.3]} 24. a4 {[%clk 0:01:48.1]} 24... Nf6 {[%clk 0:02:30.5]}
25. Nb3 {[%clk 0:01:46.3]} 25... Ne4 {[%clk 0:02:29.3]} 26. Re3 {[%clk
0:01:30.5]} 26... Nxf2 {[%clk 0:02:22.5]} 27. Rf1 {[%clk 0:01:28.6]} 27... Ne4
{[%clk 0:02:21.3]} 28. Bf3 {[%clk 0:00:56.1]} 28... Nd6 {[%clk 0:02:21.7]} 29.
Nd2 {[%clk 0:00:43]} 29... Bxf3 {[%clk 0:02:13.5]} 30. Rexf3 {[%clk 0:00:39.6]}
30... Nf5 {[%clk 0:02:14.8]} 31. d5 {[%clk 0:00:33.9]} 31... g6 {[%clk
0:02:12.9]} 32. Nb3 {[%clk 0:00:26.8]} 32... Rxc4 {[%clk 0:02:11.3]} 33. dxe6
{[%clk 0:00:24.7]} 33... fxe6 {[%clk 0:02:12]} 34. Re1 {[%clk 0:00:26.4]} 34...
Rxa4 {[%clk 0:02:09.6]} 35. Rxe6 {[%clk 0:00:24.2]} 35... Rb4 {[%clk 0:02:10.1]}
36. Ka3 {[%clk 0:00:13.7]} 36... Rxb5 {[%clk 0:02:05.7]} 37. Re1 {[%clk
0:00:09.1]} 37... Rb4 {[%clk 0:02:03.7]} 38. Rg1 {[%clk 0:00:09.6]} 38... Kf7
{[%clk 0:02:02.8]} 39. Rh1 {[%clk 0:00:10.4]} 39... h5 {[%clk 0:02:02.5]} 40.
Rc1 {[%clk 0:00:12]} 40... Ke6 {[%clk 0:01:56.3]} 41. Rg1 {[%clk 0:00:11]} 41...
Rg8 {[%clk 0:01:55.7]} 42. Re1+ {[%clk 0:00:10.6]} 42... Kf6 {[%clk 0:01:54.1]}
43. Rc1 {[%clk 0:00:09.7]} 43... Re8 {[%clk 0:01:52.6]} 44. Rc6+ {[%clk
0:00:04.7]} 44... Re6 {[%clk 0:01:53.2]} 45. Rc8 {[%clk 0:00:06.4]} 45... Kg5
{[%clk 0:01:45.7]} 46. Rg8 {[%clk 0:00:07.2]} 46... Re3 {[%clk 0:01:44.7]} 47.
Rxe3 {[%clk 0:00:06.6]} 47... Nxe3 {[%clk 0:01:46.6]} 48. Re8 {[%clk 0:00:06.8]}
48... Nc4+ {[%clk 0:01:46.7]} 49. Ka2 {[%clk 0:00:07]} 49... h4 {[%clk
0:01:47.4]} 50. Nd4 {[%clk 0:00:06.1]} 50... h3 {[%clk 0:01:38.7]} 51. Rh8
{[%clk 0:00:05.5]} 51... Ne5 {[%clk 0:01:27]} 52. Ne6+ {[%clk 0:00:03.9]} 52...
Kf6 {[%clk 0:01:27.2]} 53. Nc7 {[%clk 0:00:04.1]} 53... Rc4 {[%clk 0:01:10.1]}
54. Nd5+ {[%clk 0:00:04.8]} 54... Ke6 {[%clk 0:01:11.4]} 55. Nxb6 {[%clk
0:00:06.1]} 55... Rc6 {[%clk 0:01:11.1]} 56. Na4 {[%clk 0:00:04.5]} 56... g5
{[%clk 0:01:07.7]} 57. Rxh3 {[%clk 0:00:04.6]} 57... g4 {[%clk 0:01:09.1]} 58.
Rg3 {[%clk 0:00:03.8]} 58... Kf5 {[%clk 0:01:10]} 59. Rg1 {[%clk 0:00:04]} 59...
Kf4 {[%clk 0:01:09.9]} 60. Nb2 {[%clk 0:00:05]} 60... g3 {[%clk 0:01:08.5]} 61.
Rf1+ {[%clk 0:00:06.6]} 61... Ke3 {[%clk 0:01:08.8]} 62. Nd1+ {[%clk 0:00:05.2]}
62... Ke2 {[%clk 0:01:08.4]} 63. Rg1 {[%clk 0:00:06.9]} 63... Kf3 {[%clk
0:01:06.4]} 64. Rf1+ {[%clk 0:00:05.6]} 64... Kg4 {[%clk 0:01:00.4]} 65. Ne3+
{[%clk 0:00:07]} 65... Kg5 {[%clk 0:01:00.2]} 66. Rf5+ {[%clk 0:00:07.9]} 66...
Kg6 {[%clk 0:00:57.1]} 67. Rxe5 {[%clk 0:00:09.1]} 67... g2 {[%clk 0:00:55.7]}
68. Re8 {[%clk 0:00:03.5]} 68... Rc5 {[%clk 0:00:55.9]} 69. Rg8+ {[%clk
0:00:03.8]} 69... Kf6 {[%clk 0:00:56.4]} 70. Rxg2 {[%clk 0:00:05.3]} 70... Ke5
{[%clk 0:00:57.1]} 71. Nd1 {[%clk 0:00:06]} 71... Ke4 {[%clk 0:00:56]} 72. Nb2
{[%clk 0:00:07.4]} 72... Kd5 {[%clk 0:00:55.6]} 73. Rg5+ {[%clk 0:00:08.1]}
73... Kc6 {[%clk 0:00:56.5]} 74. Rg6+ {[%clk 0:00:09.7]} 74... Kc7 {[%clk
0:00:57.3]} 75. Rg7+ {[%clk 0:00:11]} 75... Kc6 {[%clk 0:00:58.5]} 76. Rg8
{[%clk 0:00:12.6]} 76... Kc7 {[%clk 0:00:59]} 77. Rh8 {[%clk 0:00:13.7]} 77...
Rg5 {[%clk 0:00:59.7]} 78. Rh6 {[%clk 0:00:13.9]} 78... Kb7 {[%clk 0:01:00.4]}
79. Kb3 {[%clk 0:00:14]} 79... Rb5+ {[%clk 0:01:00.4]} 80. Ka3 {[%clk 0:00:15]}
80... Rb6 {[%clk 0:00:58.8]} 81. Rh5 {[%clk 0:00:15.5]} 81... Ka6 {[%clk
0:00:54.7]} 82. Nc4 {[%clk 0:00:14.3]} 82... Rb5 {[%clk 0:00:56.1]} 83. Rh6+
{[%clk 0:00:14.8]} 83... Ka7 {[%clk 0:00:57.6]} 84. Rh7+ {[%clk 0:00:12.4]}
84... Ka6 {[%clk 0:00:58]} 85. Rh4 {[%clk 0:00:09.5]} 85... Rg5 {[%clk
0:00:49.9]} 86. Rf4 {[%clk 0:00:10.6]} 86... Rh5 {[%clk 0:00:50.4]} 87. Ka4
{[%clk 0:00:10.9]} 87... Rh1 {[%clk 0:00:47.9]} 88. Rf6+ {[%clk 0:00:11.9]}
88... Ka7 {[%clk 0:00:49.3]} 89. Kb5 {[%clk 0:00:11.8]} 89... Rb1+ {[%clk
0:00:47.3]} 90. Kc6 {[%clk 0:00:12.3]} 90... Rc1 {[%clk 0:00:44.6]} 91. Rf7+
{[%clk 0:00:10.7]} 91... Kb8 {[%clk 0:00:45.9]} 92. Kb6 {[%clk 0:00:06.5]} 92...
Rxc4 {[%clk 0:00:45.7]} 93. Rf8+ {[%clk 0:00:05.6]} 93... Rc8 {[%clk 0:00:46.6]}
94. Rxc8+ {[%clk 0:00:07.5]} 94... Kxc8 {[%clk 0:00:48.4]} 95. Kxa5 {[%clk
0:00:09.4]} 1/2-1/2